bitfinex/quotes_SOLUSD_20241213
["timestamp","ask_amount","ask_price","bid_price","bid_amount"]
[1734095630388,8.32941216,224.52,224.48,20.0]
[1734095630583,0.6634,224.61,224.49,22.89965752]
[1734095630786,8.32941216,224.53,224.51,0.12549]
[1734095630990,8.32941216,224.53,224.51,0.25098]
[1734095631605,8.32941216,224.53,224.51,24.027864]
[1734095632201,0.6634,224.61,224.51,24.027864]
[1734095632401,0.6634,224.65,224.51,24.027864]
[1734095633015,8.32941216,224.54,224.51,24.027864]
[1734095636222,8.32941216,224.55,224.51,24.027864]
[1734095637627,7.32941216,224.55,224.51,24.027864]
[1734095641123,0.6634,224.65,224.53,24.027864]
[1734095641308,0.6634,224.65,224.55,24.027864]
[1734095641509,8.32941216,224.61,224.57,0.12549]
[1734095641716,1.5637,224.66,224.57,24.027864]
[1734095641916,8.32941216,224.61,224.57,24.027864]
[1734095642236,8.32941216,224.6,224.57,24.027864]
[1734095642524,8.32941216,224.58,224.57,23.776884]
[1734095643532,8.32941216,224.59,224.57,23.902374]
[1734095644327,2.2271,224.66,224.58,0.25098]
[1734095644645,8.32941216,224.61,224.6,0.12549]
[1734095645527,1.5637,224.66,224.6,0.12549]
[1734095645704,8.32941216,224.62,224.6,0.25098]
[1734095649515,8.32941216,224.63,224.59,0.12549]
[1734095650015,8.32941216,224.62,224.59,0.12549]
[1734095654213,0.6634,224.69,224.59,0.12549]
[1734095654214,8.32941216,224.61,224.59,0.12549]
[1734095657337,0.6634,224.69,224.55,155.96271216]
[1734095657338,8.32941216,224.6,224.55,20.0]
[1734095657523,8.32941216,224.56,224.55,20.0]
[1734095657719,8.32941216,224.57,224.56,0.12549]
[1734095657909,8.32941216,224.58,224.56,0.12549]
[1734095658735,8.32941216,224.58,224.56,24.027864]
[1734095661533,8.32941216,224.57,224.54,23.776884]
[1734095661721,8.32941216,224.55,224.5,0.66788529]
[1734095661923,8.32941216,224.52,224.5,0.66788529]
[1734095662129,8.32941216,224.52,224.47,0.66793815]
[1734095662437,8.32941216,224.52,224.48,0.12549]
[1734095662638,8.32941216,224.52,224.5,0.12549]
[1734095664537,8.32941216,224.52,224.5,24.027864]
[1734095666444,8.32941216,224.53,224.5,24.027864]
[1734095666637,8.32941216,224.53,224.52,43.776884]
[1734095667143,8.32941216,224.53,224.52,23.776884]
[1734095667443,8.32941216,224.53,224.5,0.25098]
[1734095667444,8.32941216,224.53,224.5,24.027864]
[1734095667643,8.32941216,224.53,224.52,43.776884]
[1734095667831,0.6634,224.61,224.52,20.0]
[1734095668038,8.32941216,224.53,224.52,43.776884]
[1734095668723,0.6634,224.61,224.53,23.776884]
[1734095668931,8.32941216,224.54,224.53,23.776884]
[1734095689255,8.32941216,224.54,224.5,0.25098]
[1734095689256,8.32941216,224.54,224.48,23.902374]
[1734095689457,8.32941216,224.49,224.48,23.776884]
[1734095689954,8.32941216,224.49,224.44,0.66806095]
[1734095690161,8.32941216,224.48,224.46,20.0]
[1734095690362,8.32941216,224.49,224.47,0.12549]
[1734095691369,8.32941216,224.49,224.45,26.75178382]
[1734095691670,8.32941216,224.47,224.44,0.66806095]
[1734095691873,8.32941216,224.46,224.41,8.82009532]
[1734095692071,8.32941216,224.45,224.42,0.12549]
[1734095692274,8.32941216,224.44,224.42,0.12549]
[1734095692569,8.32941216,224.43,224.39,1.20578417]
[1734095692773,8.32941216,224.43,224.39,2.95560331]
[1734095692977,8.32941216,224.43,224.4,2.63893095]
[1734095693755,8.32941216,224.43,224.42,44.027864]
[1734095695175,8.32941216,224.43,224.42,43.902374]
[1734095695371,8.32941216,224.43,224.42,43.776884]
[1734095695676,8.32941216,224.43,224.42,23.776884]
[1734095695979,8.32941216,224.43,224.39,0.5375738]
[1734095696164,1.6572,224.47,224.39,0.5375738]
[1734095696165,8.32941216,224.4,224.39,0.5375738]
[1734095697669,8.32941216,224.4,224.39,24.3144578]
[1734095704188,1.6572,224.47,224.4,23.902374]
[1734095704484,8.32941216,224.43,224.4,23.902374]
[1734095705892,8.32941216,224.42,224.4,23.902374]
[1734095706377,8.32941216,224.41,224.4,23.902374]
[1734095706579,8.32941216,224.41,224.4,24.027864]
[1734095709991,8.32941216,224.41,224.39,24.3144578]
[1734095710296,8.32941216,224.4,224.39,24.3144578]
[1734095712983,1.6572,224.47,224.4,23.902374]
[1734095713176,8.32941216,224.42,224.4,23.902374]
[1734095713376,8.32941216,224.41,224.4,23.902374]
[1734095713571,8.32941216,224.41,224.39,24.3144578]
[1734095713775,8.32941216,224.4,224.39,24.4399478]
[1734095714895,8.32941216,224.4,224.39,24.3144578]
[1734095715296,8.32941216,224.4,224.39,0.5375738]
[1734095720772,41.6470608,224.4,224.39,0.5375738]
[1734095722613,43.2644608,224.4,224.27,2.62521726]
[1734095722788,8.32941216,224.31,224.28,0.12549]
[1734095723101,8.32941216,224.31,224.27,2.62521726]
[1734095724092,0.6634,224.39,224.29,20.12549]
[1734095724093,8.32941216,224.3,224.29,20.12549]
[1734095724276,8.32941216,224.3,224.29,44.027864]
[1734095726217,8.32941216,224.3,224.29,43.902374]
[1734095728614,8.32941216,224.3,224.29,23.902374]
[1734095730599,8.32941216,224.3,224.24,23.902374]
[1734095730794,8.32941216,224.26,224.25,0.12549]
[1734095731708,8.32941216,224.26,224.2,11.81935028]
[1734095731709,8.32941216,224.26,224.23,23.902374]
[1734095731912,8.32941216,224.24,224.17,0.66883842]
[1734095732211,1.6406,224.32,224.18,8.45490216]
[1734095732516,8.32941216,224.27,224.21,8.32941216]
[1734095732692,8.32941216,224.27,224.22,0.79425684]
[1734095732894,1.6406,224.32,224.22,9.123669]
[1734095733197,8.32941216,224.28,224.22,9.123669]
[1734095733408,8.32941216,224.28,224.22,0.79425684]
[1734095733607,8.32941216,224.28,224.24,0.12549]
[1734095734313,8.32941216,224.28,224.26,0.12549]
[1734095735112,8.32941216,224.27,224.26,0.12549]
[1734095735312,8.32941216,224.28,224.26,0.12549]
[1734095735513,8.32941216,224.29,224.26,0.12549]
[1734095735710,0.6634,224.36,224.26,23.902374]
[1734095735897,8.32941216,224.31,224.27,0.12549]
[1734095736295,1.5187,224.37,224.29,20.0]
[1734095736519,8.32941216,224.33,224.3,23.902374]
[1734095737412,1.5187,224.37,224.3,23.902374]
[1734095737718,8.32941216,224.33,224.3,23.902374]
[1734095737892,8.32941216,224.32,224.3,23.902374]
[1734095738097,1.5187,224.37,224.28,23.902374]
[1734095738098,8.32941216,224.31,224.28,23.902374]
[1734095738403,8.32941216,224.29,224.28,23.902374]
[1734095739402,8.32941216,224.29,224.24,20.0]
[1734095739705,8.32941216,224.26,224.24,20.0]
[1734095740019,8.32941216,224.25,224.22,20.0]
[1734095740315,8.32941216,224.24,224.21,0.12549]
[1734095740619,8.32941216,224.24,224.21,0.25098]
[1734095740813,8.32941216,224.24,224.2,0.66877405]
[1734095741409,8.32941216,224.23,224.19,2.73928746]
[1734095741717,33.31764864,224.29,224.16,0.5375738]
[1734095741718,8.32941216,224.2,224.16,0.5375738]
[1734095741910,15.0,224.28,224.16,0.5375738]
[1734095741911,8.32941216,224.17,224.16,0.5375738]
[1734095742998,8.32941216,224.17,224.16,0.6630638]
[1734095743194,8.32941216,224.17,224.16,0.5375738]
[1734095750235,8.99281216,224.17,224.16,0.5375738]
[1734095754330,8.99281216,224.17,224.09,23.902374]
[1734095754532,8.32941216,224.1,224.09,23.902374]
[1734095758815,8.32941216,224.1,224.05,2.73238976]
[1734095758816,8.32941216,224.1,224.01,0.12549]
[1734095759039,8.32941216,224.04,223.99,10.6608]
[1734095759214,8.32941216,224.05,223.99,19.6596225]
[1734095759924,8.32941216,224.05,224.0,0.12549]
[1734095760121,8.32941216,224.04,224.03,23.776884]
[1734095760434,8.32941216,224.04,223.97,8.99884774]
[1734095761940,8.32941216,224.03,223.98,23.902374]
[1734095762645,8.32941216,224.02,223.98,23.902374]
[1734095763161,8.32941216,224.03,223.98,23.902374]
[1734095763750,2.3263,224.13,224.01,20.0]
[1734095763961,2.3263,224.13,224.02,8.45490216]
[1734095764162,8.32941216,224.08,224.04,0.12549]
[1734095764465,8.32941216,224.07,224.04,0.12549]
[1734095767038,8.32941216,224.06,224.04,0.12549]
[1734095767430,0.6634,224.05,223.93,10.30563757]
[1734095767645,8.32941216,224.0,223.93,19.3046936]
[1734095768560,0.6634,224.1,223.99,8.32941216]
[1734095768727,8.32941216,224.06,223.99,8.32941216]
[1734095768930,1.6629,224.13,223.99,8.32941216]
[1734095768931,2.3263,224.13,224.02,32.35727616]
[1734095769340,8.32941216,224.08,224.02,32.35727616]
[1734095769549,8.32941216,224.05,224.02,0.12549]
[1734095769750,8.32941216,224.05,224.04,23.902374]
[1734095770271,8.32941216,224.08,224.03,0.12549]
[1734095770441,2.3263,224.13,224.03,0.12549]
[1734095770750,8.32941216,224.08,224.03,0.12549]
[1734095771135,2.3263,224.13,224.05,0.12549]
[1734095771451,8.32941216,224.11,224.05,0.12549]
[1734095772165,0.6634,224.17,224.07,8.45490216]
[1734095772369,2.2793,224.18,224.09,0.12549]
[1734095772555,8.32941216,224.13,224.09,0.12549]
[1734095772940,2.2793,224.18,224.09,8.32941216]
[1734095773143,8.32941216,224.15,224.1,23.902374]
[1734095774136,8.32941216,224.15,224.1,0.12549]
[1734095774382,8.32941216,224.14,224.09,0.12549]
[1734095774579,8.32941216,224.13,224.09,0.12549]
[1734095774795,1.6159,224.18,224.09,0.12549]
[1734095775098,8.32941216,224.12,224.09,0.12549]
[1734095775470,8.32941216,224.15,224.09,0.12549]
[1734095776701,8.32941216,224.14,224.09,0.12549]
[1734095777070,8.32941216,224.13,224.09,0.12549]
[1734095777496,8.32941216,224.14,224.09,0.12549]
[1734095777671,8.32941216,224.15,224.09,0.12549]
[1734095779384,0.6634,224.22,224.09,8.58039216]
[1734095779569,8.32941216,224.16,224.11,0.12549]
[1734095780377,8.32941216,224.17,224.11,0.12549]
[1734095780577,8.32941216,224.17,224.11,23.902374]
[1734095781384,8.32941216,224.16,224.11,0.12549]
[1734095783097,8.32941216,224.15,224.11,0.12549]
[1734095783473,8.32941216,224.16,224.11,0.12549]
[1734095783705,2.3177,224.23,224.14,23.902374]
[1734095783879,33.31764864,224.29,224.14,23.902374]
[1734095783880,8.32941216,224.2,224.14,23.902374]
[1734095784801,8.32941216,224.19,224.14,23.902374]
[1734095785096,8.32941216,224.16,224.14,23.902374]
[1734095785277,8.32941216,224.18,224.14,23.902374]
[1734095785679,8.32941216,224.17,224.14,23.902374]
[1734095786284,8.32941216,224.16,224.14,23.902374]
[1734095787408,8.32941216,224.17,224.14,23.902374]
[1734095787897,0.78889,224.26,224.14,23.902374]
[1734095788080,8.32941216,224.16,224.14,23.902374]
[1734095789507,8.32941216,224.17,224.14,23.902374]
[1734095789674,8.32941216,224.16,224.14,23.902374]
[1734095790803,8.32941216,224.15,224.14,23.902374]
[1734095791477,6.0034,224.23,224.14,23.902374]
[1734095791677,8.32941216,224.15,224.14,23.902374]
[1734095792701,8.32941216,224.16,224.14,23.902374]
[1734095793588,8.32941216,224.15,224.14,23.902374]
[1734095793786,8.32941216,224.16,224.14,23.902374]
[1734095795687,0.6634,224.22,224.14,0.12549]
[1734095795881,8.32941216,224.18,224.13,0.12549]
[1734095797087,8.32941216,224.17,224.13,0.12549]
[1734095797284,8.32941216,224.16,224.13,0.12549]
[1734095797691,8.32941216,224.15,224.13,0.12549]
[1734095799389,8.32941216,224.14,224.13,0.12549]
[1734095802703,8.32941216,224.14,224.08,20.0]
[1734095803013,8.32941216,224.11,224.08,20.0]
[1734095803396,8.32941216,224.1,224.05,11.1581]
[1734095803592,8.32941216,224.09,224.05,11.1581]
[1734095803918,8.32941216,224.1,224.06,23.902374]
[1734095804422,0.6634,224.17,224.06,23.902374]
[1734095804923,8.32941216,224.1,224.06,23.902374]
[1734095808020,0.6634,224.17,224.06,23.902374]
[1734095808217,8.32941216,224.11,224.06,23.902374]
[1734095810026,8.32941216,224.1,224.06,23.902374]
[1734095813322,8.32941216,224.09,224.06,23.902374]
[1734095814206,8.32941216,224.08,224.06,23.902374]
[1734095814652,8.32941216,224.07,224.06,23.902374]
[1734095815416,8.32941216,224.08,224.06,23.902374]
[1734095815817,8.32941216,224.07,224.06,23.902374]
[1734095816117,8.32941216,224.07,224.06,23.776884]
[1734095816531,8.32941216,224.07,224.01,0.12549]
[1734095816718,0.6634,224.15,224.01,0.12549]
[1734095816719,8.32941216,224.06,224.01,0.12549]
[1734095816920,8.32941216,224.06,223.99,11.1611]
[1734095817127,8.32941216,224.06,224.02,20.0]
[1734095818051,8.32941216,224.05,224.02,20.0]
[1734095818518,8.32941216,224.05,224.03,23.776884]
[1734095819632,8.32941216,224.04,224.03,23.776884]
[1734095820226,8.32941216,224.05,224.03,23.776884]
[1734095820812,2.2489,224.12,224.02,8.45490216]
[1734095821110,8.32941216,224.08,224.04,0.12549]
[1734095821405,2.2489,224.12,224.04,0.12549]
[1734095821609,8.32941216,224.09,224.04,0.12549]
[1734095822912,1.5855,224.12,224.04,0.12549]
[1734095823237,8.32941216,224.09,224.04,0.12549]
[1734095825226,8.32941216,224.08,224.03,0.12549]
[1734095827241,8.32941216,224.09,224.03,0.12549]
[1734095827457,0.6634,224.15,224.05,20.0]
[1734095827615,8.32941216,224.12,224.07,0.12549]
[1734095827821,12.7942,224.21,224.08,23.902374]
[1734095827822,8.32941216,224.13,224.08,23.902374]
[1734095828333,2.3073,224.21,224.08,23.902374]
[1734095828640,8.32941216,224.12,224.07,24.027864]
[1734095828824,33.31764864,224.18,224.06,0.12549]
[1734095828825,8.32941216,224.11,224.06,0.12549]
[1734095829019,8.32941216,224.1,224.06,0.12549]
[1734095829238,8.32941216,224.1,224.08,23.902374]
[1734095830035,8.32941216,224.1,224.08,23.776884]
[1734095830953,0.6634,224.17,224.08,23.776884]
[1734095831123,8.32941216,224.11,224.08,23.776884]
[1734095833428,8.32941216,224.1,224.08,23.776884]
[1734095833837,0.6634,224.17,224.08,23.776884]
[1734095834043,8.32941216,224.09,224.08,23.902374]
[1734095834246,8.32941216,224.09,224.08,23.776884]
[1734095835923,8.32941216,224.09,224.0,11.1605]
[1734095836123,8.32941216,224.03,223.98,9.63996626]
[1734095836852,8.32941216,224.04,223.98,9.63996626]
[1734095837045,8.32941216,224.04,223.98,2.66214345]
[1734095837243,8.32941216,224.04,224.0,20.0]
[1734095837440,8.32941216,224.03,224.01,23.902374]
[1734095838148,8.32941216,224.03,224.0,20.0]
[1734095839125,0.6634,224.13,223.97,18.8922]
[1734095839126,8.32941216,224.02,223.97,18.8922]
[1734095839330,8.32941216,224.0,223.93,12.37087802]
[1734095839542,8.32941216,224.0,223.94,2.70151549]
[1734095840933,8.32941216,224.01,223.97,20.0]
[1734095841149,8.32941216,224.02,223.97,20.0]
[1734095841340,8.32941216,224.01,223.97,20.0]
[1734095841546,8.32941216,224.01,223.98,23.776884]
[1734095841954,8.32941216,224.0,223.98,23.776884]
[1734095842157,8.32941216,223.99,223.98,23.776884]
[1734095842354,8.32941216,224.0,223.98,23.776884]
[1734095843060,8.32941216,223.99,223.98,23.776884]
[1734095843252,8.32941216,223.99,223.93,0.5375738]
[1734095843557,8.32941216,223.97,223.94,23.902374]
[1734095844134,8.32941216,223.95,223.94,23.776884]
[1734095845154,8.32941216,223.95,223.93,0.5375738]
[1734095845360,8.32941216,223.94,223.93,0.5375738]
[1734095846346,0.6634,224.03,223.93,0.5375738]
[1734095846547,8.32941216,223.94,223.93,0.5375738]
[1734095856576,8.32941216,223.94,223.8,24.027864]
[1734095856768,8.32941216,223.84,223.8,24.027864]
[1734095857172,27.7782,223.98,223.71,0.5375738]
[1734095857173,8.32941216,223.81,223.71,0.5375738]
[1734095857371,8.5876,223.8,223.71,0.5375738]
[1734095857574,8.32941216,223.72,223.71,0.5375738]
[1734095859680,8.5876,223.8,223.71,0.5375738]
[1734095859885,8.32941216,223.72,223.71,0.5375738]
[1734095862890,0.6634,223.73,223.71,0.5375738]
[1734095863195,8.32941216,223.72,223.71,0.5375738]
[1734095867401,0.6634,223.79,223.71,0.5375738]
[1734095867602,8.32941216,223.72,223.71,0.5375738]
[1734095870118,7.9242,223.8,223.74,0.12549]
[1734095870119,0.6634,223.8,223.74,0.12549]
[1734095870403,8.32941216,223.77,223.74,0.12549]
[1734095870593,33.98104864,223.85,223.74,0.12549]
[1734095870989,33.98104864,223.85,223.73,0.12549]
[1734095871189,8.32941216,223.74,223.73,0.12549]
[1734095872001,8.32941216,223.75,223.73,0.12549]
[1734095872204,8.32941216,223.77,223.73,0.12549]
[1734095873800,0.6634,223.85,223.73,8.58039216]
[1734095874007,8.32941216,223.81,223.75,23.902374]
[1734095874405,8.32941216,223.79,223.75,23.902374]
[1734095875222,8.32941216,223.8,223.75,23.902374]
[1734095876007,6.1081,223.89,223.75,23.902374]
[1734095876208,8.32941216,223.8,223.75,23.902374]
[1734095877826,8.32941216,223.77,223.75,23.902374]
[1734095879638,8.32941216,223.78,223.75,23.902374]
[1734095881531,0.6634,223.84,223.75,23.902374]
[1734095881742,8.32941216,223.8,223.75,23.902374]
[1734095882635,8.32941216,223.81,223.75,23.902374]
[1734095883027,0.6634,223.91,223.76,11.1726]
[1734095883346,8.32941216,223.81,223.77,23.902374]
[1734095883842,0.6634,223.91,223.77,23.902374]
[1734095884034,8.32941216,223.82,223.77,23.902374]
[1734095884235,8.32941216,223.81,223.77,23.902374]
[1734095884745,8.32941216,223.8,223.77,23.902374]
[1734095885257,0.6634,223.91,223.77,23.902374]
[1734095885422,8.32941216,223.82,223.77,23.902374]
[1734095886043,0.6634,223.91,223.77,23.902374]
[1734095886044,0.6634,223.91,223.81,0.12549]
[1734095886365,8.32941216,223.86,223.81,23.902374]
[1734095886566,1.5576,223.92,223.81,0.12549]
[1734095886567,8.32941216,223.85,223.81,0.12549]
[1734095886764,8.32941216,223.85,223.8,0.25098]
[1734095887562,8.32941216,223.82,223.8,0.12549]
[1734095887960,2.221,223.92,223.78,155.2315]
[1734095888165,8.32941216,223.86,223.79,8.32941216]
[1734095888673,0.6634,223.91,223.78,18.7315]
[1734095888674,8.32941216,223.82,223.78,18.7315]
[1734095888980,8.32941216,223.81,223.78,7.5604]
[1734095889712,8.32941216,223.81,223.79,23.902374]
[1734095890068,8.32941216,223.85,223.79,23.902374]
[1734095890270,8.32941216,223.86,223.79,32.23178616]
[1734095890569,8.32941216,223.84,223.79,23.902374]
[1734095891172,8.32941216,223.83,223.79,23.902374]
[1734095891367,8.32941216,223.82,223.79,23.902374]
[1734095892204,8.32941216,223.81,223.79,23.902374]
[1734095892512,8.32941216,223.8,223.74,11.1732]
[1734095893678,8.32941216,223.8,223.75,23.902374]
[1734095894398,8.32941216,223.82,223.75,34.90297948]
[1734095894631,8.32941216,223.81,223.75,26.57356732]
[1734095894948,0.6634,223.9,223.78,23.902374]
[1734095895236,8.32941216,223.84,223.78,23.902374]
[1734095897134,0.6634,223.91,223.81,8.45490216]
[1734095897350,8.32941216,223.89,223.84,23.776884]
[1734095897639,8.32941216,223.87,223.84,23.776884]
[1734095898145,2.221,223.92,223.84,23.776884]
[1734095898146,8.32941216,223.86,223.84,23.776884]
[1734095898342,8.32941216,223.87,223.84,23.776884]
[1734095898513,8.32941216,223.86,223.84,23.776884]
[1734095899020,8.32941216,223.88,223.85,0.12549]
[1734095899353,0.6634,223.95,223.86,0.12549]
[1734095899515,8.32941216,223.91,223.86,0.12549]
[1734095900543,8.32941216,223.9,223.86,0.12549]
[1734095900851,8.32941216,223.89,223.86,0.12549]
[1734095901818,8.32941216,223.89,223.85,23.776884]
[1734095902755,8.32941216,223.9,223.85,23.776884]
[1734095903256,1.6281,223.98,223.87,32.10629616]
[1734095903578,8.32941216,223.94,223.87,32.10629616]
[1734095903736,0.6634,224.01,223.9,23.902374]
[1734095903935,0.6634,224.01,223.93,8.32941216]
[1734095904168,8.32941216,224.0,223.95,23.776884]
[1734095904367,0.6634,224.03,223.95,23.776884]
[1734095904671,8.32941216,224.01,223.96,0.12549]
[1734095904972,0.6634,224.06,223.96,0.12549]
[1734095904973,0.6634,224.06,223.97,8.32941216]
[1734095905139,0.6634,224.08,223.99,0.12549]
[1734095905337,0.6634,224.08,224.0,8.32941216]
[1734095905675,15.0,224.16,224.01,23.902374]
[1734095905676,8.32941216,224.07,224.01,23.902374]
[1734095905889,8.32941216,224.08,224.01,8.45490216]
[1734095906065,2.3102,224.14,224.03,0.12549]
[1734095906235,0.6634,224.14,224.05,0.12549]
[1734095906590,8.32941216,224.11,224.06,23.776884]
[1734095907162,13.14942341,224.08,224.04,0.12549]
[1734095907473,13.14942341,224.11,224.04,13.27491341]
[1734095907686,13.14942341,224.1,224.06,0.12549]
[1734095908473,13.14942341,224.09,224.03,36.92630741]
[1734095908771,13.14942341,224.09,224.04,0.12549]
[1734095909275,13.14942341,224.11,224.06,0.12549]
[1734095909439,13.14942341,224.12,224.06,0.12549]
[1734095909650,13.14942341,224.1,224.06,0.12549]
[1734095909855,13.14942341,224.09,224.03,23.776884]
[1734095910084,0.6634,224.17,224.04,0.12549]
[1734095910085,13.14942341,224.08,224.04,0.12549]
[1734095910357,13.14942341,224.11,224.04,13.14942341]
[1734095910555,13.14942341,224.11,224.05,23.776884]
[1734095911062,0.6634,224.17,224.03,37.05179741]
[1734095911063,13.14942341,224.1,224.03,37.05179741]
[1734095912977,13.14942341,224.09,224.03,0.12549]
[1734095913177,13.14942341,224.1,224.04,23.776884]
[1734095915668,13.14942341,224.11,224.05,0.12549]
[1734095915866,13.14942341,224.14,224.08,0.12549]
[1734095916089,13.14942341,224.15,224.08,37.7210447]
[1734095916893,13.14942341,224.17,224.1,13.14942341]
[1734095917068,13.14942341,224.17,224.08,24.57162129]
[1734095917069,13.14942341,224.17,224.12,23.776884]
[1734095917282,13.14942341,224.2,224.14,13.14942341]
[1734095917478,13.14942341,224.2,224.13,13.40040341]
[1734095917678,13.14942341,224.2,224.15,0.12549]
[1734095918686,13.14942341,224.21,224.15,0.12549]
[1734095918877,0.6634,224.25,224.17,23.902374]
[1734095919073,0.6634,224.25,224.19,23.902374]
[1734095919074,13.14942341,224.25,224.19,23.902374]
[1734095919279,13.14942341,224.25,224.19,37.05179741]
[1734095919491,13.14942341,224.24,224.19,0.12549]
[1734095920204,13.14942341,224.24,224.18,0.12549]
[1734095920409,13.14942341,224.23,224.18,0.12549]
[1734095920700,13.14942341,224.22,224.17,0.12549]
[1734095921406,13.14942341,224.21,224.17,0.12549]
[1734095921597,13.14942341,224.18,224.14,20.0]
[1734095921800,13.14942341,224.19,224.14,20.0]
[1734095922143,13.14942341,224.2,224.14,20.0]
[1734095922320,13.14942341,224.17,224.13,20.0]
[1734095922633,13.14942341,224.17,224.1,21.21222341]
[1734095923438,13.14942341,224.16,224.11,26.61629388]
[1734095924024,13.14942341,224.17,224.11,26.61629388]
[1734095924409,13.14942341,224.18,224.11,39.76571729]
[1734095924629,13.14942341,224.18,224.12,13.27491341]
[1734095924836,13.14942341,224.22,224.16,13.14942341]
[1734095925135,13.14942341,224.23,224.17,23.902374]
[1734095926131,13.14942341,224.25,224.19,13.14942341]
[1734095926334,13.14942341,224.27,224.2,37.72065964]
[1734095927619,13.14942341,224.26,224.2,23.902374]
[1734095927813,13.14942341,224.25,224.2,23.902374]
[1734095928040,13.14942341,224.25,224.2,0.12549]
[1734095928424,13.14942341,224.23,224.2,0.12549]
[1734095928622,13.14942341,224.23,224.19,0.12549]
[1734095928822,13.14942341,224.21,224.17,0.12549]
[1734095929062,0.6634,224.28,224.21,0.12549]
[1734095929262,6.2112,224.38,224.26,0.12549]
[1734095929263,13.14942341,224.31,224.26,0.12549]
[1734095929561,13.14942341,224.3,224.25,23.776884]
[1734095929729,13.14942341,224.28,224.21,14.66012341]
[1734095930128,13.14942341,224.28,224.22,23.902374]
[1734095930352,13.14942341,224.27,224.22,23.902374]
[1734095930759,13.14942341,224.27,224.23,0.12549]
[1734095930942,13.14942341,224.3,224.23,13.27491341]
[1734095931138,13.14942341,224.3,224.24,23.902374]
[1734095931453,13.14942341,224.28,224.24,0.12549]
[1734095932171,13.14942341,224.28,224.23,0.12549]
[1734095932761,13.14942341,224.27,224.22,23.776884]
[1734095932926,13.14942341,224.27,224.23,0.12549]
[1734095933446,13.14942341,224.28,224.23,0.12549]
[1734095933655,13.14942341,224.27,224.23,0.12549]
[1734095934026,13.14942341,224.28,224.23,0.12549]
[1734095934841,6.90705175,224.76,224.27,13.27491341]
[1734095934842,0.6634,224.37,224.27,13.27491341]
[1734095935051,0.6634,224.37,224.29,0.12549]
[1734095935247,13.14942341,224.33,224.28,23.776884]
[1734095935458,13.14942341,224.32,224.27,0.12549]
[1734095935759,13.14942341,224.32,224.26,0.12549]
[1734095938557,13.14942341,224.29,224.25,0.12549]
[1734095938741,13.14942341,224.28,224.26,23.776884]
[1734095939953,13.14942341,224.28,224.21,14.66012341]
[1734095940144,13.14942341,224.28,224.18,6.2794]
[1734095940145,13.14942341,224.25,224.18,19.42882341]
[1734095940342,13.14942341,224.24,224.18,6.2794]
[1734095941879,0.6634,224.28,224.16,1.5779]
[1734095941880,13.14942341,224.21,224.16,1.5779]
[1734095942753,13.14942341,224.21,224.14,13.14942341]
[1734095943563,13.14942341,224.2,224.13,19.35462341]
[1734095943973,13.14942341,224.19,224.13,6.2052]
[1734095944351,11.1482,224.25,224.13,6.2052]
[1734095944582,13.14942341,224.18,224.13,6.2052]
[1734095945291,13.14942341,224.18,224.14,23.776884]
[1734095945657,13.14942341,224.17,224.12,23.776884]
[1734095947384,13.14942341,224.14,224.08,19.69162341]
[1734095948498,13.14942341,224.14,224.09,23.902374]
[1734095948796,13.14942341,224.15,224.09,23.902374]
[1734095950656,13.14942341,224.14,224.09,23.902374]
[1734095951776,13.14942341,224.11,224.07,23.776884]
[1734095951994,13.14942341,224.11,224.07,20.0]
[1734095952491,13.14942341,224.09,224.02,19.34252341]
[1734095952676,13.14942341,224.09,224.05,20.0]
[1734095953088,13.14942341,224.06,224.02,6.1931]
[1734095953798,13.14942341,224.06,223.99,24.31032341]
[1734095954305,13.14942341,224.05,223.98,13.14942341]
[1734095955187,13.14942341,224.05,223.99,23.776884]
[1734095956074,13.14942341,224.05,224.0,0.12549]
[1734095957778,6.3249,224.14,223.99,20.0]
[1734095957779,13.14942341,224.01,223.99,20.0]
[1734095958392,13.14942341,224.0,223.96,8.3276]
[1734095958777,13.14942341,224.0,223.94,0.12549]
[1734095958978,13.14942341,224.0,223.94,0.25098]
[1734095959301,13.14942341,224.01,223.94,13.40040341]
[1734095959475,13.14942341,224.01,223.94,13.14942341]
[1734095960998,13.14942341,224.01,223.95,0.12549]
[1734095961205,13.14942341,224.01,223.95,23.902374]
[1734095962479,13.14942341,224.0,223.95,0.12549]
[1734095965201,13.14942341,224.01,223.95,0.12549]